bitfinex-derivatives/quotes_SOLF0:USTF0_20241005
["timestamp","ask_amount","ask_price","bid_price","bid_amount"]
[1728105659824,0.12502,143.15,143.12,3.4931]
[1728105660621,3.493,143.14,143.11,8.3535]
[1728105660926,0.12502,143.15,143.11,4.86]
[1728105661122,0.12502,143.15,143.08,3.4942]
[1728105661123,3.4936,143.11,143.08,3.4942]
[1728105661318,0.12502,143.15,143.08,4.86]
[1728105662237,3.4938,143.11,143.08,4.86]
[1728105662526,0.12502,143.15,143.08,4.86]
[1728105662925,3.4937,143.11,143.08,4.86]
[1728105663318,0.12502,143.15,143.08,4.86]
[1728105663723,3.494,143.1,143.08,4.86]
[1728105664821,3.4931,143.13,143.08,8.3542]
[1728105665031,0.12502,143.15,143.08,8.3542]
[1728105665926,3.4935,143.12,143.08,4.86]
[1728105666126,3.4935,143.12,143.09,3.4941]
[1728105666319,3.4935,143.12,143.08,4.86]
[1728105666320,0.12502,143.15,143.08,4.86]
[1728105666524,3.493,143.14,143.1,3.4937]
[1728105666829,0.12502,143.15,143.08,4.86]
[1728105667022,3.4933,143.13,143.08,4.86]
[1728105667223,3.4933,143.13,143.09,3.4939]
[1728105667425,3.4933,143.13,143.08,4.86]
[1728105669130,3.4933,143.13,143.1,3.4938]
[1728105675235,0.12502,143.15,143.08,4.86]
[1728105675842,3.4937,143.11,143.08,4.86]
[1728105676341,0.12502,143.15,143.05,96.65087696]
[1728105676342,4.86,143.14,143.05,96.65087696]
[1728105676528,3.4941,143.09,143.06,8.3546]
[1728105677327,3.4941,143.09,143.05,100.14577696]
[1728105677530,3.47768387,143.12,143.06,4.86]
[1728105678241,3.4946,143.08,143.06,4.86]
[1728105681635,3.47768387,143.12,143.06,4.86]
[1728105681834,3.4941,143.09,143.06,8.3548]
[1728105683037,3.4936,143.11,143.06,4.86]
[1728105684040,3.4939,143.1,143.07,3.4945]
[1728105687633,3.4944,143.08,143.06,4.86]
[1728105689845,3.4951,143.06,143.04,4.88]
[1728105690446,3.4951,143.06,143.03,0.12502]
[1728105691137,2.8126,143.08,143.03,0.12502]
[1728105691349,3.495,143.06,143.03,0.12502]
[1728105691647,2.8126,143.08,143.03,0.12502]
[1728105692748,3.495,143.06,143.03,0.12502]
[1728105693452,2.8126,143.08,143.03,0.12502]
[1728105693751,3.4953,143.04,143.03,0.12502]
[1728105695951,3.4952,143.05,143.03,0.12502]
[1728105696449,9.0528,143.08,143.03,0.12502]
[1728105697748,3.4953,143.04,143.03,0.12502]
[1728105701148,9.0528,143.08,143.03,0.12502]
[1728105701849,3.495,143.06,143.03,3.62052]
[1728105706154,9.0528,143.08,143.03,0.12502]
[1728105707264,3.495,143.06,143.03,0.12502]
[1728105708848,3.4952,143.05,143.03,0.12502]
[1728105712164,3.4952,143.05,142.97,3.56120954]
[1728105712165,9.0528,143.08,142.99,4.88]
[1728105712552,9.0528,143.08,142.98,4.88]
[1728105712861,3.4959,143.02,142.99,3.4965]
[1728105713458,3.4957,143.03,142.99,3.4965]
[1728105713655,9.0528,143.08,142.99,3.4965]
[1728105714469,3.4959,143.02,142.99,3.4965]
[1728105716766,4.88,143.05,142.97,0.12502]
[1728105716968,3.4963,143.0,142.97,3.62192]
[1728105717670,4.88,143.05,142.97,0.12502]
[1728105718079,3.4965,142.99,142.97,0.12502]
[1728105719175,3.4968,142.98,142.97,0.12502]
[1728105722974,4.88,142.99,142.92,3.4982]
[1728105723178,3.4975,142.95,142.92,3.4982]
[1728105723378,4.88,142.99,142.92,3.4982]
[1728105723882,3.54535282,142.98,142.92,3.4982]
[1728105724481,3.4977,142.95,142.91,8.50332]
[1728105725373,3.4977,142.95,142.92,3.4982]
[1728105725678,3.4971,142.97,142.91,5.00502]
[1728105727680,3.4971,142.97,142.93,3.4978]
[1728105728975,3.4971,142.97,142.92,3.498]
[1728105729285,3.4971,142.97,142.91,5.00502]
[1728105730181,3.4971,142.97,142.93,3.4978]
[1728105731788,3.4973,142.96,142.93,3.4978]
[1728105736384,8.38898664,142.99,142.91,5.00502]
[1728105736583,3.4976,142.95,142.92,3.4982]
[1728105737785,3.4974,142.96,142.91,5.00502]
[1728105738789,3.4974,142.96,142.93,3.498]
[1728105741787,3.4977,142.95,142.92,3.4981]
[1728105741988,3.4977,142.95,142.91,5.00502]
[1728105742489,3.4977,142.95,142.91,8.50332]
[1728105743691,3.4977,142.95,142.91,5.00502]
[1728105743893,3.4977,142.95,142.92,3.4982]
[1728105746100,8.38898664,142.99,142.92,3.4982]
[1728105746290,3.4972,142.97,142.94,3.4977]
[1728105750194,3.4973,142.96,142.93,3.4979]
[1728105750390,3.50898664,142.99,142.91,0.12502]
[1728105750597,4.88,143.0,142.91,0.12502]
[1728105750899,3.4975,142.96,142.92,3.4982]
[1728105751092,4.88,142.97,142.92,3.4982]
[1728105751393,1.4014,142.96,142.92,3.4982]
[1728105751594,2.8218,142.96,142.92,3.4982]
[1728105751997,2.8218,142.96,142.91,0.12502]
[1728105752195,4.154,142.96,142.91,0.12502]
[1728105752401,3.4982,142.92,142.91,0.12502]
[1728105753297,3.4985,142.91,142.88,3.4991]
[1728105753598,4.88,142.94,142.88,3.4991]
[1728105753894,3.4983,142.92,142.88,3.499]
[1728105754102,3.4983,142.92,142.86,4.88]
[1728105754304,3.4983,142.92,142.85,0.12502]
[1728105754502,3.4983,142.92,142.86,4.88]
[1728105755203,3.4983,142.92,142.88,3.499]
[1728105757008,3.4983,142.92,142.86,4.88]
[1728105757207,3.4983,142.92,142.89,3.4989]
[1728105761606,4.154,142.96,142.89,4.88]
[1728105762306,4.154,142.96,142.92,3.4982]
[1728105762307,3.4977,142.95,142.92,3.4982]
[1728105765906,4.154,142.96,142.93,3.4977]
[1728105765907,2.8218,142.96,142.93,3.4977]
[1728105766113,2.8218,142.96,142.89,4.88]
[1728105766315,2.8218,142.96,142.92,4.88]
[1728105766613,6.3191,142.96,142.93,3.4978]
[1728105770009,2.8218,142.96,142.85,1.90562]
[1728105770209,3.4979,142.94,142.91,3.4985]
[1728105770703,3.4986,142.91,142.85,1.90562]
[1728105770907,3.4986,142.91,142.86,4.88]
[1728105771816,3.4986,142.91,142.88,3.499]
[1728105772409,3.4986,142.91,142.87,3.4994]
[1728105776010,3.4986,142.91,142.86,4.88]
[1728105776212,3.4986,142.91,142.88,3.4992]
[1728105776516,3.4984,142.92,142.88,3.4992]
[1728105780816,3.4985,142.91,142.88,3.4992]
[1728105783430,3.4985,142.91,142.87,3.4994]
[1728105783724,4.88,142.95,142.87,3.4994]
[1728105783927,3.4988,142.9,142.87,3.4994]
[1728105792431,4.88,142.95,142.86,4.88]
[1728105794129,4.88,142.95,142.89,3.4988]
[1728105794130,3.4984,142.92,142.89,3.4988]
[1728105794932,3.4985,142.91,142.86,4.88]
[1728105795139,3.4985,142.91,142.88,3.4991]
[1728105796133,3.4987,142.91,142.87,3.4993]
[1728105796632,3.4991,142.89,142.86,8.3796]
[1728105799043,2.7438,142.9,142.85,0.12502]
[1728105799245,2.7438,142.9,142.85,3.62492]
[1728105799246,3.4994,142.88,142.85,3.62492]
[1728105818458,2.7438,142.9,142.85,0.12502]
[1728105820150,3.4994,142.88,142.85,0.12502]
[1728105830773,2.7438,142.9,142.85,0.12502]
[1728105832083,3.4994,142.88,142.85,0.12502]
[1728105838272,3.4995,142.87,142.85,0.12502]
[1728105841075,3.4997,142.86,142.85,0.12502]
[1728105841277,3.4997,142.86,142.8,19.4125241]
[1728105841278,4.88,142.86,142.8,19.4125241]
[1728105841471,4.88,142.86,142.76,4.88]
[1728105841472,2.7342,142.85,142.76,4.88]
[1728105841671,3.5008,142.82,142.78,3.5015]
[1728105841979,3.5008,142.82,142.78,22.9140241]
[1728105842275,3.5008,142.82,142.78,3.5015]
[1728105843384,1.413,142.85,142.79,5.00502]
[1728105843772,4.913,142.85,142.79,5.00502]
[1728105844378,4.913,142.85,142.8,3.501]
[1728105844573,4.913,142.85,142.79,5.00502]
[1728105844975,4.913,142.85,142.81,3.5008]
[1728105845175,3.5002,142.84,142.81,3.5008]
[1728105850596,6.293,142.85,142.79,0.12502]
[1728105850885,1.3733,142.84,142.79,0.12502]
[1728105851078,3.5011,142.81,142.79,0.12502]
[1728105852481,4.9371,142.82,142.79,3.62642]
[1728105852784,1.4363,142.82,142.79,3.62642]
[1728105854180,3.5006,142.83,142.79,3.62642]
[1728105854181,1.3733,142.84,142.81,3.5008]
[1728105854386,1.3733,142.84,142.79,0.12502]
[1728105855988,3.5008,142.82,142.79,3.62632]
[1728105875101,3.5009,142.81,142.79,0.12502]
[1728105878811,1.3733,142.84,142.79,0.12502]
[1728105879012,3.5007,142.82,142.79,3.62642]
[1728105880619,3.5005,142.83,142.79,0.12502]
[1728105880912,3.5005,142.83,142.8,3.5011]
[1728105882309,3.5005,142.83,142.79,3.62632]
[1728105882807,3.5008,142.82,142.79,3.62632]
[1728105888017,6.2533,142.84,142.79,0.12502]
[1728105888223,3.501,142.81,142.79,0.12502]
[1728105893321,3.5009,142.82,142.79,3.62642]
[1728105894721,6.2533,142.84,142.79,0.12502]
[1728105894921,3.5009,142.81,142.79,0.12502]
[1728105900744,3.5012,142.8,142.79,0.12502]
[1728105904234,3.5013,142.8,142.74,24.2925241]
[1728105904441,1.3455,142.82,142.74,4.88]
[1728105905334,3.5013,142.8,142.76,3.5021]
[1728105905541,3.5013,142.8,142.74,24.2925241]
[1728105907044,3.5013,142.8,142.77,3.5018]
[1728105916553,6.2255,142.82,142.75,19.4125241]
[1728105916554,1.3455,142.82,142.75,19.4125241]
[1728105916744,1.3455,142.82,142.76,19.4125241]
[1728105916946,1.3455,142.82,142.75,19.4125241]
[1728105917147,1.3455,142.82,142.76,19.4125241]
[1728105917352,1.3455,142.82,142.75,19.4125241]
[1728105917652,4.8463,142.82,142.76,19.4125241]
[1728105918044,4.8463,142.82,142.75,19.4125241]
[1728105918239,5.03802,142.85,142.76,19.4125241]
[1728105918449,1.53802,142.85,142.77,4.86]
[1728105918656,1.53802,142.85,142.78,24.2725241]
[1728105918951,1.53802,142.85,142.78,4.86]
[1728105919154,6.2521,142.84,142.78,4.86]
[1728105919344,3.5009,142.82,142.78,8.3615]
[1728105921959,3.5009,142.82,142.79,3.5013]
[1728105924454,6.2521,142.84,142.78,4.86]
[1728105924757,1.3921,142.84,142.78,4.86]
[1728105924957,6.39802,142.85,142.78,4.86]
[1728105925152,6.39802,142.85,142.78,24.2725241]
[1728105925349,9.89812,142.85,142.82,3.5007]
[1728105927553,5.03812,142.85,142.82,3.5007]
[1728105936467,1.53802,142.85,142.84,3.5002]
[1728105937560,1.53802,142.85,142.83,3.5004]
[1728105947668,0.12502,142.85,142.78,4.86]
[1728105948563,0.12502,142.85,142.84,3.5002]
[1728105952976,0.12502,142.85,142.84,8.3602]
[1728105960982,3.5002,142.84,142.81,8.3608]
[1728105961183,0.12502,142.85,142.76,1.4226]
[1728105961482,1.4273,142.84,142.79,4.86]
[1728105961677,1.4273,142.84,142.76,1.4226]
[1728105961878,3.5007,142.82,142.79,3.5013]
[1728105962477,1.4273,142.84,142.77,4.86]
[1728105963676,1.4273,142.84,142.79,3.5014]
[1728105963878,1.4273,142.84,142.77,4.86]
[1728105965786,0.12502,142.85,142.77,4.86]
[1728105965984,0.12502,142.85,142.78,1.19189795]
[1728105966286,0.12502,142.85,142.84,3.5002]
[1728105971193,3.62372,142.91,142.88,3.4991]
[1728105974098,0.12502,142.91,142.87,8.3594]
[1728105974891,3.62362,142.91,142.87,8.3594]
[1728105979402,3.4988,142.9,142.87,8.3594]
[1728105990308,3.4993,142.88,142.85,8.3598]
[1728105991004,4.8565,142.89,142.86,3.4997]
[1728105992799,1.3574,142.89,142.85,4.86]
[1728105993703,1.3574,142.89,142.87,3.4993]
[1728106011535,4.8564,142.89,142.86,3.4996]
[1728106014939,1.3574,142.89,142.87,3.4994]
[1728106018247,3.4988,142.9,142.87,3.4994]
[1728106018444,0.12502,142.91,142.89,3.4988]
[1728106022649,0.12502,142.91,142.88,4.86]
[1728106022952,0.12502,142.91,142.9,3.4987]
[1728106024448,3.4987,142.9,142.88,4.86]
[1728106024843,3.4987,142.9,142.87,3.4994]
[1728106036152,3.48153232,142.9,142.83,19.4125241]
[1728106036357,2.8065,142.89,142.81,19.4125241]
[1728106036552,2.8065,142.89,142.82,24.2725241]
[1728106036757,2.8065,142.89,142.82,4.86]
[1728106037648,3.4995,142.87,142.83,3.5004]
[1728106037846,2.8065,142.89,142.83,3.5004]
[1728106038055,4.86,142.88,142.8,19.4125241]
[1728106038258,3.5001,142.85,142.81,8.3608]
[1728106042459,3.5004,142.84,142.81,8.3608]
[1728106042659,6.3072,142.88,142.79,96.94483814]
[1728106042861,6.3072,142.88,142.8,3.5011]
[1728106043155,3.5004,142.84,142.8,3.5011]
[1728106048557,3.42711176,142.83,142.8,3.5011]
[1728106048865,3.5005,142.83,142.8,3.5011]
[1728106049060,7.05253303,142.83,142.79,105.30613814]
[1728106049365,7.05253303,142.83,142.79,101.80483814]
[1728106049366,3.5005,142.83,142.79,101.80483814]
[1728106050258,3.5005,142.83,142.8,3.501]
[1728106082690,3.5007,142.82,142.8,3.501]
[1728106082887,3.5007,142.82,142.79,105.30613814]
[1728106083889,1.4356,142.84,142.79,101.80483814]
[1728106084093,3.5005,142.83,142.8,3.5012]
[1728106096304,3.5007,142.82,142.79,100.44613814]
[1728106101105,3.47823257,142.82,142.79,0.12502]
[1728106101310,3.5012,142.8,142.79,0.12502]
[1728106104108,3.5011,142.81,142.79,0.12502]
[1728106108918,4.86,142.82,142.79,0.12502]
[1728106109117,3.5009,142.81,142.79,0.12502]
[1728106119222,3.5012,142.8,142.79,0.12502]
[1728106119622,4.86,142.82,142.74,96.86934548]
[1728106119819,1.395,142.79,142.74,96.86934548]
[1728106120018,6.255,142.79,142.74,96.86934548]
[1728106120817,3.5023,142.76,142.74,96.86934548]
[1728106121322,1.3337,142.78,142.73,0.12502]
[1728106121523,3.5026,142.75,142.73,0.12502]
[1728106124426,3.5021,142.77,142.73,3.62772]
[1728106125217,3.5022,142.76,142.73,3.62772]
[1728106125419,2.6401,142.78,142.73,0.12502]
[1728106126730,3.5024,142.76,142.73,0.12502]
[1728106130124,7.5001,142.78,142.73,0.12502]
[1728106130331,3.5021,142.77,142.73,3.62772]
[1728106134337,7.5001,142.78,142.73,3.62772]
[1728106134537,3.5022,142.76,142.73,3.62772]
[1728106134838,3.5022,142.76,142.73,0.12502]
[1728106135928,7.5001,142.78,142.73,0.12502]
[1728106136133,3.5024,142.75,142.73,0.12502]
[1728106138745,7.5001,142.78,142.73,0.12502]
[1728106138939,3.5023,142.76,142.73,0.12502]
[1728106139834,11.0019,142.78,142.74,3.5025]
[1728106140033,7.5001,142.78,142.73,0.12502]
[1728106140444,3.5021,142.77,142.73,3.62782]
[1728106141442,3.5022,142.76,142.73,3.62782]
[1728106141742,7.5001,142.78,142.74,3.5024]
[1728106141934,7.5001,142.78,142.73,0.12502]
[1728106142135,11.0019,142.78,142.73,0.12502]
[1728106142341,9.6955,142.78,142.75,3.5024]
[1728106142537,4.8355,142.78,142.75,3.5024]
[1728106144047,4.8355,142.78,142.74,3.5025]
[1728106145347,3.502,142.77,142.74,3.5025]
[1728106145551,1.3337,142.78,142.73,3.62792]
[1728106147050,3.5022,142.76,142.73,3.62792]
[1728106147754,3.502,142.77,142.74,3.5026]
[1728106147946,1.3337,142.78,142.74,3.5026]
[1728106148347,4.8356,142.78,142.74,3.5026]
[1728106149055,3.5019,142.77,142.74,3.5026]
[1728106156552,6.255,142.79,142.74,3.5026]
[1728106156757,3.5018,142.78,142.74,3.5026]
[1728106157158,1.395,142.79,142.76,3.502]
[1728106159069,4.8965,142.79,142.76,3.502]
[1728106159661,1.395,142.79,142.76,3.502]
[1728106160462,1.395,142.79,142.77,3.5019]
[1728106168166,9.6896,142.81,142.74,4.86]
[1728106168471,4.8296,142.81,142.74,4.86]
[1728106168670,3.5012,142.8,142.77,3.5018]
[1728106179775,3.5014,142.79,142.76,3.502]
[1728106182977,3.5013,142.8,142.74,4.86]
[1728106184683,4.8296,142.81,142.74,4.86]
[1728106186783,4.8296,142.81,142.77,3.5017]
[1728106189784,4.8296,142.81,142.76,3.5021]
[1728106189994,4.8296,142.81,142.74,4.86]
[1728106190483,4.8296,142.81,142.77,3.5017]
[1728106190687,4.8296,142.81,142.74,4.86]
[1728106192593,4.8296,142.81,142.77,3.5017]
[1728106196497,4.8296,142.81,142.75,4.86]
[1728106196691,4.8296,142.81,142.78,3.5016]
[1728106197592,3.5007,142.82,142.79,3.5014]
[1728106204797,3.5009,142.81,142.78,3.5016]
[1728106205908,3.5008,142.82,142.78,3.5016]
[1728106208409,3.5009,142.81,142.78,3.5016]
[1728106210804,6.2286,142.84,142.81,3.5009]
[1728106210999,2.7283,142.84,142.78,4.86]
[1728106212007,2.7283,142.84,142.82,3.5006]
[1728106213611,3.62502,142.85,142.82,3.5006]
[1728106214303,0.12502,142.85,142.81,4.86]
[1728106215007,0.12502,142.85,142.84,3.5002]
[1728106217512,0.12502,142.85,142.84,8.3602]
[1728106219116,9.88181804,142.91,142.87,3.4993]
[1728106219714,6.45262,142.91,142.87,3.4993]
[1728106220019,6.45262,142.91,142.87,8.3393]
[1728106223815,6.45252,142.91,142.88,3.4991]
[1728106224621,2.95402,142.91,142.88,3.4991]
[1728106225115,0.12502,142.91,142.87,4.84]
[1728106225921,0.12502,142.91,142.88,3.4992]
[1728106226910,0.12502,142.91,142.87,4.84]
[1728106226911,0.12502,142.91,142.8,1.9153]
[1728106227112,0.12502,142.91,142.81,4.84]
[1728106227316,1.56162,142.91,142.81,4.84]
[1728106227618,1.56162,142.91,142.79,193.82165732]
[1728106227828,2.7018,142.9,142.8,4.84]
[1728106228120,3.5001,142.85,142.8,4.84]
[1728106228417,3.5001,142.85,142.79,193.82165732]
[1728106228613,3.5001,142.85,142.81,3.5008]
[1728106228809,4.84,142.89,142.8,4.84]
[1728106229009,3.4995,142.87,142.83,3.5003]
[1728106229217,3.4995,142.87,142.83,8.3403]
[1728106234523,3.4995,142.87,142.84,3.5002]
[1728106236626,3.4995,142.87,142.83,8.3403]
[1728106237827,8.3392,142.89,142.86,3.4997]
[1728106238023,8.3392,142.89,142.83,4.84]
[1728106238215,3.4992,142.89,142.83,4.84]
[1728106238926,3.4992,142.89,142.85,3.4998]
[1728106240228,3.4993,142.88,142.85,3.4998]
[1728106242227,3.4991,142.89,142.86,3.4997]
[1728106243826,6.2007,142.9,142.87,3.4994]
[1728106244032,3.4989,142.9,142.87,3.4994]
[1728106245826,0.12502,142.91,142.9,3.4987]
[1728106246029,0.12502,142.91,142.9,8.3387]
[1728106246233,2.7142,142.98,142.9,4.84]
[1728106246532,6.2111,142.98,142.9,4.84]
[1728106247229,6.2111,142.98,142.93,3.4978]
[1728106247534,3.62222,142.97,142.94,4.84]
[1728106248739,0.12502,142.97,142.94,4.84]
[1728106249436,0.12502,142.97,142.94,8.3377]
[1728106250539,0.12502,142.97,142.95,3.4973]
[1728106252531,0.12502,142.97,142.94,8.3377]
[1728106253535,0.12502,142.97,142.95,4.84]
[1728106266041,0.12502,142.97,142.96,3.4973]
[1728106266445,0.12502,142.97,142.91,96.76002751]
[1728106266641,0.12502,142.97,142.94,3.4977]
[1728106266642,3.62212,142.97,142.94,3.4977]
[1728106266842,3.62212,142.97,142.95,4.84]
[1728106268146,0.12502,142.97,142.95,4.84]
[1728106268341,0.12502,142.97,142.95,8.3374]
[1728106268541,0.12502,142.97,142.95,4.84]
[1728106270046,0.12502,142.97,142.96,3.4973]
[1728106272646,0.12502,142.97,142.91,96.76002751]
[1728106273146,0.12502,142.97,142.91,101.60002751]
[1728106273547,2.88432,142.97,142.91,101.60002751]
[1728106274149,3.4975,142.96,142.89,3.4988]
[1728106274345,2.88432,142.97,142.89,4.84]
[1728106274654,3.4982,142.93,142.89,8.3389]
[1728106274847,2.88432,142.97,142.89,4.84]
[1728106276152,3.4984,142.92,142.89,4.84]
[1728106278052,3.498,142.93,142.89,4.84]
[1728106278552,3.498,142.93,142.89,8.3389]
[1728106278952,2.88432,142.97,142.89,3.4989]
[1728106279154,3.4983,142.92,142.89,8.3389]
[1728106279365,3.4983,142.92,142.89,4.84]
[1728106280255,2.88432,142.97,142.89,4.84]
[1728106280554,2.88432,142.97,142.89,8.3389]
[1728106280555,3.4981,142.93,142.89,8.3389]
[1728106284357,3.57757414,142.92,142.85,0.12502]
[1728106284660,4.84,142.95,142.86,8.3395]
[1728106284855,1.3573,142.94,142.86,4.84]
[1728106285156,3.4989,142.9,142.86,8.3396]
[1728106285362,3.4989,142.9,142.86,4.84]
[1728106285856,3.4989,142.9,142.87,3.4993]
[1728106288756,3.4989,142.9,142.87,8.3393]
[1728106291759,3.47464148,142.92,142.85,0.12502]
[1728106291966,1.3573,142.94,142.86,4.84]
[1728106291967,2.7308,142.91,142.86,4.84]
[1728106292264,6.19938821,142.91,142.86,4.84]
[1728106292460,3.4992,142.89,142.86,8.3397]
[1728106293859,6.20253639,142.91,142.85,0.12502]
[1728106294560,3.4994,142.88,142.85,3.62492]
[1728106294769,6.20253639,142.91,142.85,0.12502]
[1728106295965,3.4993,142.88,142.85,0.12502]
[1728106300170,3.4995,142.87,142.85,0.12502]
[1728106300372,6.20253639,142.91,142.85,0.12502]
[1728106300967,3.4996,142.87,142.85,0.12502]
[1728106301669,6.20253639,142.91,142.85,0.12502]
[1728106301866,11.04253639,142.91,142.85,0.12502]
[1728106302172,6.20253639,142.91,142.86,4.84]
[1728106303073,3.4988,142.9,142.87,3.4994]
[1728106305171,3.499,142.89,142.86,8.3396]
[1728106306168,3.499,142.89,142.86,4.84]
[1728106306966,3.499,142.89,142.86,8.3397]
[1728106307776,3.499,142.89,142.86,4.84]
[1728106308479,6.20253639,142.91,142.86,4.84]
[1728106308669,3.4992,142.88,142.86,4.84]
[1728106313783,3.4992,142.88,142.85,3.62482]
[1728106315379,6.20253639,142.91,142.85,0.12502]
[1728106315577,3.4992,142.89,142.86,3.4997]
[1728106326593,3.4994,142.88,142.85,0.12502]
[1728106326792,6.20253639,142.91,142.85,0.12502]
[1728106327295,3.4994,142.88,142.85,0.12502]
[1728106329393,6.20253639,142.91,142.85,0.12502]
[1728106329590,3.499,142.89,142.85,0.12502]
[1728106329997,3.499,142.89,142.86,3.4997]
[1728106330387,6.20253639,142.91,142.85,0.12502]
[1728106330601,3.4993,142.88,142.85,3.62492]
[1728106331699,6.20253639,142.91,142.85,0.12502]
[1728106331998,2.7308,142.91,142.85,0.12502]
[1728106332187,1.3573,142.94,142.85,0.12502]
[1728106332389,3.4978,142.94,142.9,3.4986]
[1728106332788,3.498,142.93,142.9,3.4986]
[1728106333396,3.54103981,142.93,142.89,4.84]
[1728106333593,1.4417,142.95,142.89,4.84]
[1728106335008,3.4982,142.93,142.9,3.4987]
[1728106335306,1.4417,142.95,142.9,3.4987]
[1728106336103,3.4978,142.94,142.9,3.4987]
[1728106337206,1.4417,142.95,142.9,3.4987]
[1728106337408,3.498,142.93,142.9,3.4987]
[1728106337700,3.498,142.93,142.89,4.84]
[1728106337900,3.4983,142.92,142.89,8.339]
[1728106338507,3.4983,142.92,142.89,3.499]
[1728106338710,3.4983,142.92,142.89,8.339]
[1728106340302,3.4983,142.92,142.89,4.84]
[1728106340911,7.05338342,142.92,142.89,4.84]
[1728106341306,7.05338342,142.92,142.87,8.3392]
[1728106342112,3.4986,142.91,142.87,8.3392]
[1728106343606,3.55508342,142.92,142.87,8.3392]
[1728106343817,3.4989,142.9,142.87,8.3392]
[1728106344508,3.4989,142.9,142.87,3.4992]
[1728106344707,3.4989,142.9,142.87,8.3392]
[1728106348215,3.4986,142.91,142.87,8.3392]
[1728106351222,3.44001399,142.92,142.87,8.3392]
[1728106351423,3.4987,142.9,142.87,8.3392]
[1728106354628,3.5546326,142.92,142.87,4.84]
[1728106354929,3.4986,142.91,142.88,3.4992]
[1728106371643,3.4989,142.9,142.87,8.3393]
[1728106381545,3.50227303,142.92,142.87,4.84]
[1728106381752,1.4417,142.95,142.87,4.84]
[1728106382245,3.4978,142.94,142.91,3.4985]
[1728106382451,2.7644,142.96,142.9,8.4041766]
[1728106382655,1.3943,142.96,142.9,4.84]
[1728106382841,8.9864,143.0,142.9,8.31744165]
[1728106383349,6.2737,143.0,142.96,3.4973]
[1728106383652,2.7774,143.0,142.96,3.4973]
[1728106383850,3.4966,142.99,142.95,8.3374]
[1728106386153,2.7774,143.0,142.95,4.84]
[1728106386455,6.2737,143.0,142.96,3.4973]
[1728106390160,3.4966,142.99,142.96,3.4973]
[1728106397571,4.8941,143.0,142.96,3.4973]
[1728106397771,0.12502,143.03,142.96,3.4973]
[1728106398171,3.4962,143.01,142.96,3.4973]
[1728106398777,6.99251364,143.02,142.96,3.4973]
[1728106398972,0.12502,143.03,142.96,3.4973]
[1728106399478,3.60670228,143.03,142.96,3.4973]
[1728106399775,3.496,143.02,142.96,3.4973]
[1728106400972,3.4961,143.01,142.96,3.4973]
[1728106407274,0.12502,143.03,142.96,3.4973]
[1728106407473,3.4959,143.02,142.96,3.4973]
[1728106407873,3.4959,143.02,142.96,9.9373]
[1728106410579,10.06062,143.03,142.96,9.9373]
[1728106412185,9.936,143.02,142.96,9.9373]
[1728106417393,3.4963,143.0,142.96,3.4973]
[1728106417588,3.4963,143.0,142.96,9.9373]
[1728106420185,3.4965,142.99,142.91,1.8757]
[1728106420389,6.56502,142.97,142.93,3.4978]
[1728106420797,3.4973,142.96,142.93,3.4978]
[1728106426889,0.12502,142.97,142.93,6.44]
[1728106427089,3.62212,142.97,142.94,3.4977]
[1728106427590,0.12502,142.97,142.92,4.84]